bitfinex/quotes_ETHUSD_20240902
["timestamp","ask_amount","ask_price","bid_price","bid_amount"]
[1725314353339,2.3345,2552.2,2551.8,0.04468972]
[1725314353510,5.46905,2552.2,2551.8,0.04468972]
[1725314353713,5.46905,2552.2,2551.7,3.13506]
[1725314353995,3.13479,2552.0,2551.8,0.04468972]
[1725314354192,3.13482,2552.0,2551.8,0.04468972]
[1725314354422,3.13482,2552.0,2551.6,4.14138622]
[1725314354890,3.13482,2552.0,2551.7,0.04479652]
[1725314355096,2.4841,2551.8,2551.7,0.04479652]
[1725314355319,2.4841,2551.8,2551.3,17.69253622]
[1725314355792,2.4841,2551.8,2551.3,14.55695622]
[1725314355994,2.4841,2551.8,2551.4,0.04511696]
[1725314357454,5.61916,2551.8,2551.4,0.04511696]
[1725314357653,3.359508,2551.8,2551.4,0.04511696]
[1725314359915,6.494548,2551.8,2551.4,0.04511696]
[1725314361247,3.359508,2551.8,2551.4,0.04511696]
[1725314363439,2.3826,2552.4,2551.9,3.1349]
[1725314363741,5.3826,2552.4,2552.0,0.04447616]
[1725314364135,4.49576736,2552.3,2552.0,0.04447616]
[1725314364341,5.3251,2552.2,2552.0,0.04447616]
[1725314364507,5.3251,2552.2,2551.7,6.27018]
[1725314364845,5.3251,2552.2,2551.8,0.04468972]
[1725314365350,5.3251,2552.2,2551.9,0.04458294]
[1725314365557,6.30718674,2552.2,2551.9,0.04458294]
[1725314365707,6.30718674,2552.2,2551.7,6.27018]
[1725314365708,6.30718674,2552.2,2551.7,3.13509]
[1725314365902,6.30718674,2552.2,2551.8,0.04468972]
[1725314366155,6.30718674,2552.2,2551.7,6.27016]
[1725314366441,6.30718674,2552.2,2551.9,0.04458294]
[1725314366743,6.30718674,2552.2,2552.0,0.04447616]
[1725314367135,6.30718674,2552.2,2551.7,3.13507]
[1725314367307,6.30718674,2552.2,2552.1,0.04431916]
[1725314367606,9.44173674,2552.2,2551.7,3.13507]
[1725314367815,9.44173674,2552.2,2552.1,0.04431916]
[1725314368019,9.44173674,2552.2,2551.7,3.13507]
[1725314368216,9.44173674,2552.2,2552.1,0.04431916]
[1725314368419,9.44173674,2552.2,2551.7,3.13507]
[1725314368618,9.44173674,2552.2,2552.1,0.04446646]
[1725314368848,9.44173674,2552.2,2551.7,3.13507]
[1725314369345,9.44173674,2552.2,2551.8,0.04493409]
[1725314369720,9.44173674,2552.2,2551.7,3.13507]
[1725314369946,9.44173674,2552.2,2551.8,0.0449832]
[1725314370315,9.44173674,2552.2,2551.7,3.13507]
[1725314370517,9.44173674,2552.2,2551.8,0.0449832]
[1725314370718,9.44173674,2552.2,2551.7,3.13507]
[1725314370928,9.44173674,2552.2,2551.8,0.0449832]
[1725314371352,9.44173674,2552.2,2551.7,3.13507]
[1725314371551,9.44173674,2552.2,2551.9,0.04487641]
[1725314371752,9.44173674,2552.2,2551.8,0.0449832]
[1725314371952,9.44173674,2552.2,2552.0,0.04476963]
[1725314372267,9.44173674,2552.2,2552.1,0.04466286]
[1725314372565,8.45965,2552.2,2551.7,3.13507]
[1725314373171,8.45965,2552.2,2551.8,0.0449832]
[1725314373680,8.45965,2552.2,2551.7,3.13507]
[1725314373681,8.45965,2552.2,2551.9,0.04487641]
[1725314373967,8.45965,2552.2,2551.7,3.13507]
[1725314374179,8.45965,2552.2,2552.0,0.04476963]
[1725314374342,8.45965,2552.2,2551.7,3.13507]
[1725314374537,9.619045,2552.2,2552.1,0.04466286]
[1725314374730,9.619045,2552.2,2551.7,3.13507]
[1725314375275,9.619045,2552.2,2551.8,0.0449832]
[1725314375560,9.619045,2552.2,2551.7,3.13507]
[1725314375754,9.619045,2552.2,2551.9,0.04487641]
[1725314375947,9.619045,2552.2,2551.8,0.0449832]
[1725314376153,9.619045,2552.2,2552.0,0.04476963]
[1725314376358,9.619045,2552.2,2551.9,0.04487641]
[1725314376527,9.619045,2552.2,2552.1,0.04466286]
[1725314376727,8.45965,2552.2,2551.7,3.13507]
[1725314377029,3.13482,2552.0,2551.8,0.0449832]
[1725314377265,3.13482,2552.0,2551.5,3.13532]
[1725314377676,3.13482,2552.0,2551.6,0.0451968]
[1725314378172,3.13482,2552.0,2551.6,3.1804768]
[1725314378962,3.13482,2552.0,2551.6,0.0451968]
[1725314382092,2.3496,2551.9,2551.6,0.0451968]
[1725314386736,2.3496,2551.9,2551.4,6.27091]
[1725314386944,2.3496,2551.9,2551.7,0.04522641]
[1725314387249,2.3496,2551.9,2551.4,6.27091]
[1725314387542,5.48451,2551.9,2551.8,0.04511961]
[1725314387747,5.48451,2551.9,2551.4,6.27091]
[1725314387899,5.48451,2551.9,2551.8,0.04511961]
[1725314388206,5.48451,2551.9,2551.4,3.13545]
[1725314388405,5.48451,2551.9,2551.8,0.04511961]
[1725314388637,5.48451,2551.9,2551.4,3.13545]
[1725314388842,5.48451,2551.9,2551.8,0.04511961]
[1725314389340,5.48451,2551.9,2551.4,3.13545]
[1725314389494,5.48451,2551.9,2551.8,0.04511961]
[1725314389697,5.48451,2551.9,2551.4,3.13545]
[1725314389897,5.48451,2551.9,2551.5,0.04544002]
[1725314394412,2.3496,2551.9,2551.5,0.04544002]
[1725314396147,2.3496,2551.9,2551.5,3.18084002]
[1725314397218,2.3496,2551.9,2551.5,0.04544002]
[1725314397419,5.48459,2551.9,2551.5,0.04544002]
[1725314400433,3.13469,2552.1,2551.7,1.72974548]
[1725314400819,6.26945,2552.1,2551.7,1.72974548]
[1725314401155,3.13469,2552.1,2551.7,1.72974548]
[1725314401371,3.13475,2552.1,2551.5,4.10437357]
[1725314401517,2.2688,2552.4,2552.0,1.72974548]
[1725314401722,4.142,2554.0,2551.9,2.2989]
[1725314401723,2.2688,2552.7,2552.2,1.72974548]
[1725314401916,2.3182,2553.1,2552.4,1.72974548]
[1725314402165,2.3182,2553.1,2552.6,1.72974548]
[1725314402316,2.3182,2553.1,2552.8,1.72974548]
[1725314402765,5.39799,2553.4,2552.8,4.86354548]
[1725314402926,6.024586,2553.4,2552.8,4.86354548]
[1725314403329,6.024586,2553.4,2552.8,1.72974548]
[1725314404169,3.1332,2553.3,2552.7,3.13383]
[1725314404348,0.9157786,2553.2,2552.7,3.13383]
[1725314406568,3.0,2553.3,2552.8,3.13381]
[1725314406723,3.0,2553.3,2552.7,3.13383]
[1725314409487,5.45827,2552.7,2552.1,3.13458]
[1725314409797,6.1401728,2552.7,2552.1,3.13458]
[1725314410137,3.13408,2552.6,2551.9,3.13482]
[1725314410450,2.4614,2552.4,2551.9,3.13482]
[1725314411237,2.4614,2552.4,2551.9,3.1348]
[1725314411646,2.4614,2552.4,2551.9,6.26963]
[1725314411868,2.4614,2552.4,2552.0,3.13478]
[1725314412399,2.4614,2552.4,2551.9,3.1348]
[1725314413092,2.4614,2552.4,2551.9,6.26964]
[1725314413263,2.4614,2552.4,2551.9,3.1348]
[1725314413769,3.334364,2552.4,2551.9,3.1348]
[1725314414103,2.4614,2552.4,2551.9,3.1348]
[1725314414463,2.4614,2552.4,2551.7,10.41719617]
[1725314414464,5.59577,2552.4,2551.7,10.41719617]
[1725314414693,0.872996,2552.3,2551.7,10.41719617]
[1725314415196,0.872996,2552.3,2551.8,3.13502]
[1725314415401,0.872996,2552.3,2551.7,7.28209617]
[1725314415558,4.007446,2552.3,2551.7,7.28209617]
[1725314415757,4.007446,2552.3,2551.7,10.41718617]
[1725314416067,4.007446,2552.3,2551.7,7.28209617]
[1725314416394,4.007446,2552.3,2551.7,10.41718617]
[1725314416595,4.007446,2552.3,2551.7,10.41716617]
[1725314417294,3.7814346,2552.2,2551.7,4.14705617]
[1725314417493,3.13468,2552.1,2551.5,6.31608002]
[1725314417855,6.26944,2552.1,2551.5,3.13531]
[1725314418094,3.75752646,2552.1,2551.6,0.04506041]
[1725314419965,2.3609,2552.0,2551.6,0.04506041]
[1725314420120,5.49606,2551.7,2551.6,0.04506041]
[1725314420418,3.13536,2551.6,2551.1,7.28283617]
[1725314420634,3.13561,2551.4,2550.8,7.28329617]
[1725314420766,3.13561,2551.4,2550.8,4.14705617]
[1725314421105,2.4237,2551.2,2550.8,4.14705617]
[1725314421675,5.55949,2551.2,2550.6,0.3932]
[1725314422499,2.4237,2551.2,2550.7,6.27262]
[1725314423277,2.4237,2551.2,2550.8,3.13625]
[1725314423500,5.45227,2551.5,2550.9,3.13604]
[1725314423740,6.13553,2551.4,2550.8,10.41949617]
[1725314423923,3.13553,2551.4,2550.8,7.28324617]
[1725314424125,3.13553,2551.4,2550.8,10.41943617]
[1725314424358,3.13553,2551.4,2550.8,7.28322617]
[1725314424654,3.13553,2551.4,2550.8,10.41941617]
[1725314424959,3.13553,2551.4,2550.9,3.13612]
[1725314425630,3.13553,2551.4,2550.8,7.28322617]
[1725314425965,4.3556525,2551.4,2550.8,7.28322617]
[1725314426126,4.3556525,2551.4,2550.9,0.04580827]
[1725314427155,1.2201225,2551.4,2551.0,3.13601]
[1725314427346,4.2201225,2551.4,2551.0,3.13601]
[1725314427543,4.2201225,2551.4,2551.1,0.04559455]
[1725314427864,3.13464,2552.2,2551.1,0.04559455]
[1725314428012,3.13379,2552.9,2551.7,3.13507]
[1725314428013,2.4238,2552.0,2551.7,3.13507]
[1725314428458,2.4238,2552.0,2551.8,0.04484681]
[1725314428613,2.4238,2552.0,2551.7,3.13507]
[1725314428971,2.4238,2552.0,2551.9,0.04474002]
[1725314429114,3.13412,2552.6,2551.9,3.13491]
[1725314429115,2.4238,2552.3,2551.9,3.13491]
[1725314429425,2.4238,2552.5,2551.9,3.17965002]
[1725314429626,2.737212,2552.5,2551.9,3.17965002]
[1725314430038,5.871482,2552.5,2551.9,0.04474002]
[1725314430240,3.1343,2552.4,2551.9,0.04474002]
[1725314430560,3.0,2552.3,2551.9,0.04474002]
[1725314431255,3.13476,2552.1,2551.9,0.04474002]
[1725314431468,2.4858,2552.2,2551.4,3.13545]
[1725314431636,3.13487,2552.0,2551.4,3.13545]
[1725314431833,3.13487,2552.0,2551.5,0.04544001]
[1725314433271,4.310396,2552.0,2551.5,0.04544001]
[1725314433480,7.445276,2552.0,2551.5,0.04544001]
[1725314433646,4.310396,2552.0,2551.5,0.04544001]
[1725314436534,1.175526,2552.0,2551.5,0.04544001]
[1725314436738,5.59941,2551.8,2551.5,0.04544001]
[1725314436938,5.59941,2551.8,2551.0,7.28297617]
[1725314437174,6.13459,2552.2,2551.0,4.14705617]
[1725314437175,3.13548,2551.5,2551.0,4.14705617]
[1725314437377,2.3735,2551.4,2551.0,4.14705617]
[1725314440148,2.3735,2551.4,2550.9,3.13614]
[1725314441170,2.3735,2551.4,2551.0,0.04614336]
[1725314442072,3.13567,2551.3,2551.0,0.04614336]
[1725314442241,3.13567,2551.3,2550.8,3.13618]
[1725314442553,3.13567,2551.3,2551.1,0.04632034]
[1725314442751,3.13567,2551.3,2550.8,3.13618]
[1725314443250,3.13567,2551.3,2550.9,0.04653405]
[1725314444684,2.3628,2551.1,2550.9,0.04653405]
[1725314444984,2.3628,2551.1,2550.7,3.13637]
[1725314445140,2.3628,2551.1,2551.0,0.04642719]
[1725314445335,2.3628,2551.1,2550.7,3.13637]
[1725314445540,2.3628,2551.1,2551.0,0.04642719]
[1725314445763,2.3628,2551.1,2550.7,3.13637]
[1725314445969,2.3628,2551.1,2551.0,0.04642719]
[1725314446448,2.3628,2551.1,2550.7,3.13637]
[1725314446653,2.3628,2551.1,2551.0,0.04642719]
[1725314446854,2.3628,2551.1,2550.7,3.13637]
[1725314447074,2.3628,2551.1,2551.0,0.04642719]
[1725314447280,2.3628,2551.1,2550.7,3.13637]
[1725314447482,2.3628,2551.1,2551.0,0.04642719]
[1725314447680,2.3628,2551.1,2550.7,3.13637]
[1725314447846,2.3628,2551.1,2551.0,0.04642719]
[1725314448184,2.3628,2551.1,2550.7,3.13637]
[1725314448359,2.3628,2551.1,2551.0,0.04642719]
[1725314448554,2.3628,2551.1,2550.7,3.13637]
[1725314449066,2.3628,2551.1,2550.8,0.04664093]
[1725314449283,2.3628,2551.1,2550.7,3.13637]
[1725314449479,2.3628,2551.1,2550.9,0.04653405]
[1725314449691,2.3628,2551.1,2550.7,3.13637]
[1725314449845,2.3628,2551.1,2551.0,0.04642719]
[1725314450047,2.3628,2551.1,2550.7,3.13637]
[1725314450246,2.3628,2551.1,2551.0,0.04642719]
[1725314450451,2.9990928,2551.1,2550.6,7.28351617]
[1725314450687,6.1350528,2551.1,2551.0,0.04642719]
[1725314450998,5.49876,2551.1,2550.6,7.28351617]
[1725314451148,5.49876,2551.1,2551.0,0.04642719]
[1725314451782,5.49876,2551.1,2550.6,7.28351617]
[1725314451991,5.49876,2551.1,2551.0,0.04642719]
[1725314452148,6.048636,2551.1,2550.6,7.28351617]
[1725314452347,5.49876,2551.1,2551.0,0.04659099]
[1725314452874,3.13577,2551.3,2550.7,3.13631]
[1725314453075,2.3466,2551.5,2551.1,3.13589]
[1725314453276,2.3466,2552.0,2551.4,3.13545]
[1725314453650,2.3466,2552.0,2551.5,0.0460568]
[1725314453853,2.3466,2552.0,2551.6,3.13526]
[1725314454057,2.3466,2552.0,2551.6,3.18120999]
[1725314454257,2.3466,2552.0,2551.6,0.04594999]
[1725314454482,2.3466,2552.0,2551.4,3.13544]
[1725314454757,2.3466,2552.0,2551.7,0.04613795]
[1725314455077,6.029505,2552.0,2551.8,0.04594926]
[1725314455291,5.48139,2552.0,2551.8,0.04594926]
[1725314455499,3.13491,2551.9,2551.2,7.28274617]
[1725314455671,3.13491,2551.9,2551.3,3.13564]
[1725314455867,3.13491,2551.9,2551.3,3.18212332]
[1725314456179,3.13491,2551.9,2551.3,0.04648332]
[1725314457006,3.13507,2551.8,2551.3,0.04648332]
[1725314457168,2.3535,2551.7,2551.3,0.04648332]
[1725314457491,2.3535,2551.7,2551.4,0.04637649]
[1725314457896,2.3535,2551.7,2551.2,7.28274617]
[1725314458082,2.3535,2551.7,2551.5,0.04626967]
[1725314458395,2.3535,2551.7,2551.0,3.13596]
[1725314458593,5.48866,2551.7,2551.6,0.04616286]
[1725314458796,5.48866,2551.7,2551.0,3.13596]
[1725314458797,3.13531,2551.6,2551.0,3.13596]
[1725314459098,3.13531,2551.6,2550.9,6.84945617]
[1725314459099,2.3634,2551.4,2550.9,7.28319617]
[1725314459284,5.49902,2551.4,2550.8,3.13623]
[1725314460457,3.13567,2551.3,2550.8,3.13623]
[1725314460656,3.999118,2551.3,2550.8,3.13623]
[1725314461084,2.2833,2551.2,2550.6,7.67668617]
[1725314461286,2.2833,2551.2,2550.7,3.13637]
[1725314461720,5.41908,2551.2,2550.7,3.13637]
[1725314462123,2.2833,2551.2,2550.7,3.13637]
[1725314463122,2.2833,2551.2,2551.0,3.13601]
[1725314463426,2.2833,2551.2,2550.7,7.04033262]
[1725314463720,2.2833,2551.2,2550.7,3.13631]
[1725314465930,5.41915,2551.2,2550.6,7.67676617]
[1725314469305,3.13591,2551.1,2550.6,7.67676617]
[1725314471040,3.13591,2551.1,2550.7,0.04704258]
[1725314472633,2.2833,2551.2,2550.7,6.31972258]
[1725314472828,2.2833,2551.2,2550.8,3.13619]
[1725314473036,2.2833,2551.2,2550.9,0.04682883]
[1725314473631,2.2791,2551.5,2551.1,3.1359]
[1725314473933,2.2791,2551.9,2551.5,3.13539]
[1725314474137,2.2791,2551.9,2551.6,3.13527]
[1725314474371,2.2791,2551.9,2551.6,3.18136736]
[1725314475639,2.2791,2551.9,2551.6,0.04609736]
[1725314475835,2.50701,2551.9,2551.6,0.04609736]
[1725314476036,2.50701,2551.9,2551.3,3.13557]
[1725314476339,2.2791,2551.9,2551.5,3.13539]
[1725314476541,2.2715,2551.8,2551.4,0.04626733]
[1725314476754,2.2715,2551.6,2551.1,3.1358]
[1725314477037,2.2715,2551.6,2551.3,3.13556]
[1725314477263,2.2715,2551.6,2551.4,0.04627825]
[1725314479283,2.49865,2551.6,2551.4,0.04627825]
[1725314479933,2.49865,2551.6,2551.2,3.13577]
[1725314480135,2.2715,2551.6,2551.5,0.04622601]
[1725314480376,2.2715,2551.6,2551.2,3.13577]
[1725314480588,2.2715,2551.6,2551.5,0.04622601]
[1725314481041,2.2715,2551.6,2551.2,3.13577]
[1725314481241,2.2715,2551.6,2551.3,0.04643966]
[1725314481449,2.2715,2551.6,2551.2,3.13577]
[1725314481777,2.2715,2551.6,2551.3,0.04643966]
[1725314482147,2.2715,2551.6,2551.2,3.13577]
[1725314482344,2.2715,2551.6,2551.4,0.04639834]
[1725314482569,2.2715,2551.6,2551.3,0.04650517]
[1725314482758,2.2715,2551.6,2551.5,0.04629152]
[1725314482954,2.2715,2551.6,2551.4,0.04639834]
[1725314483159,2.2715,2551.6,2551.5,0.04629152]
[1725314483585,2.2715,2551.6,2551.2,3.13577]
[1725314484080,2.2715,2551.6,2551.3,0.04650517]
[1725314484490,2.2715,2551.6,2551.2,3.13577]
[1725314484661,2.2715,2551.6,2551.4,0.04639834]
[1725314484844,2.2715,2551.6,2551.3,0.04650517]
[1725314485043,2.2715,2551.6,2551.2,3.13577]
[1725314485297,2.2715,2551.6,2551.3,0.04650517]
[1725314485788,2.2715,2551.6,2551.2,3.13577]
[1725314485942,2.2715,2551.6,2551.4,0.04639834]
[1725314486146,2.2715,2551.6,2551.3,0.04650517]
[1725314486495,2.2715,2551.6,2551.4,0.04639834]
[1725314486859,2.2715,2551.6,2551.2,3.13571]
[1725314487046,2.2715,2551.6,2551.3,0.04650517]
[1725314487248,2.2715,2551.6,2551.2,3.13571]
[1725314487557,2.2715,2551.6,2551.3,0.0463086]
[1725314487785,0.540666,2551.5,2551.3,0.0463086]
[1725314487965,5.40679,2551.6,2551.0,6.27191]
[1725314488178,5.40679,2551.6,2551.4,0.04620177]
[1725314488179,8.54214,2551.6,2551.4,0.04620177]
[1725314488356,5.947469,2551.6,2551.1,3.13589]
[1725314488550,5.947469,2551.6,2551.5,0.04609495]
[1725314488783,5.947469,2551.6,2551.1,3.13589]
[1725314488997,5.947469,2551.6,2551.5,0.04609495]
[1725314489204,5.947469,2551.6,2551.1,3.13589]
[1725314489382,5.40679,2551.6,2551.5,0.04609495]
[1725314489558,5.40679,2551.6,2551.1,3.13589]
[1725314489763,5.40679,2551.6,2551.5,0.04609495]
[1725314489974,2.4229,2551.5,2551.1,3.13589]
[1725314492917,5.55831,2551.5,2551.0,4.86635293]
[1725314493062,3.13469,2552.1,2550.8,0.3932]
[1725314493063,3.13578,2551.2,2550.8,0.3932]
[1725314493259,2.4229,2551.1,2550.7,3.13628]
[1725314493898,5.55881,2551.1,2550.7,3.13628]
[1725314494507,3.13531,2551.6,2550.5,0.73700728]
[1725314494508,2.4229,2551.0,2550.5,0.73700728]
[1725314494800,5.55941,2550.6,2550.5,0.73700728]
[1725314498317,2.4229,2550.6,2550.5,0.73700728]
[1725314500388,2.4229,2550.6,2550.1,3.13711]
[1725314501225,2.4229,2550.6,2550.2,0.04656716]
[1725314501403,2.3586,2550.8,2550.5,3.13653]
[1725314501587,5.3586,2551.1,2550.6,3.450153]
[1725314501887,5.3586,2551.1,2550.7,3.13637]
[1725314502436,5.3586,2551.1,2550.8,0.04633536]
[1725314502724,2.3586,2551.1,2550.8,0.04633536]
[1725314502889,2.3586,2551.1,2550.7,3.13637]
[1725314503086,2.3586,2551.1,2550.9,0.04622849]
[1725314503434,2.3586,2551.1,2550.7,3.13632]
[1725314503583,2.3586,2551.1,2551.0,0.04596868]
[1725314503784,2.3586,2551.1,2550.7,3.13632]
[1725314503983,2.3586,2551.1,2551.0,0.04596868]
[1725314504187,2.3586,2551.1,2550.8,3.13625]
[1725314504412,2.3586,2551.1,2551.0,0.04596868]
[1725314504611,2.3586,2551.1,2550.9,0.04607554]
[1725314504820,2.3586,2551.1,2551.0,0.04596868]
[1725314505193,2.3586,2551.1,2550.8,3.13625]
[1725314505394,2.3586,2551.1,2551.0,0.04590314]
[1725314505707,2.3586,2551.1,2550.8,3.13625]
[1725314505924,2.3586,2551.1,2551.0,0.04590314]
[1725314506213,2.3586,2551.1,2550.9,0.04601]
[1725314506414,2.3586,2551.1,2551.0,0.04590314]
[1725314507135,2.3586,2551.1,2550.8,3.13625]
[1725314507334,2.3586,2551.1,2551.0,0.04590314]
[1725314507490,2.3586,2551.1,2550.9,0.04601]
[1725314507700,2.2788,2551.4,2551.2,3.13574]
[1725314507901,2.4831,2551.7,2551.2,0.31816431]
[1725314508244,2.4831,2552.3,2551.7,3.13507]
[1725314508738,2.4831,2552.3,2551.8,0.04496116]
[1725314509050,2.4831,2552.3,2551.9,3.13487]
[1725314509549,2.4831,2552.3,2552.0,0.04474759]
[1725314510307,3.358268,2552.3,2552.0,0.04474759]
[1725314510544,3.358268,2552.3,2551.7,6.27014]
[1725314510717,3.358268,2552.3,2552.1,0.04361978]
[1725314510912,3.358268,2552.3,2551.7,6.27014]
[1725314511329,3.358268,2552.3,2551.8,0.04394012]
[1725314511501,3.358268,2552.3,2551.7,6.27014]
[1725314511703,3.358268,2552.3,2551.9,0.04371872]
[1725314511906,3.358268,2552.3,2551.7,3.13507]
[1725314512217,2.4831,2552.3,2552.0,0.04361194]
[1725314512527,5.4831,2552.3,2551.8,3.13503]
[1725314512731,5.4831,2552.3,2552.1,0.04350517]
[1725314512917,5.4831,2552.3,2551.9,3.13487]
[1725314513122,3.13427,2552.5,2551.5,3.13533]
[1725314513123,2.295,2552.1,2551.5,3.13533]
[1725314513312,0.542966,2552.0,2551.5,3.13533]
[1725314513512,2.295,2552.1,2551.5,3.13533]
[1725314514845,2.295,2552.1,2551.7,3.13514]
[1725314516248,2.295,2552.1,2551.8,0.043891]
[1725314516614,2.295,2552.1,2551.7,3.13514]
[1725314516814,2.295,2552.1,2551.9,0.04375146]
[1725314517041,2.295,2552.1,2551.8,0.04385825]
[1725314517308,2.295,2552.1,2551.9,0.04375146]
[1725314517542,2.295,2552.1,2551.7,3.13514]
[1725314517767,2.295,2552.1,2552.0,0.04364468]
[1725314518072,2.295,2552.1,2551.8,3.13503]
[1725314518229,2.295,2552.1,2552.0,0.0436174]
[1725314518430,2.295,2552.1,2551.9,0.04371872]
[1725314518772,2.837951,2552.1,2552.0,0.04361194]
[1725314518921,2.837951,2552.1,2551.5,3.1354]
[1725314519121,2.295,2552.1,2552.0,0.04361194]
[1725314519358,2.295,2552.1,2551.7,3.13516]
[1725314519571,2.295,2552.1,2552.0,0.0436174]
[1725314519740,2.295,2552.1,2551.7,3.13516]
[1725314519929,2.295,2552.1,2552.0,0.0436174]
[1725314520129,2.837951,2552.1,2551.7,3.13516]
[1725314520431,2.837951,2552.1,2552.0,0.04359011]
[1725314520632,3.13492,2551.9,2551.3,3.13558]
[1725314520862,2.323,2551.8,2551.3,3.13558]
[1725314521446,5.45805,2551.8,2551.2,3.13575]
[1725314523028,3.13517,2551.7,2551.0,3.13601]
[1725314523234,2.4126,2551.6,2551.0,3.13601]
[1725314523466,2.3144,2551.5,2550.8,7.29241379]
[1725314523669,3.1356,2551.4,2550.8,3.13622]
[1725314523878,4.294134,2551.4,2550.8,3.13622]
[1725314524534,4.294134,2551.4,2550.6,3.13647]
[1725314524535,3.1359,2551.1,2550.6,3.13647]
[1725314524735,3.13586,2551.2,2550.6,3.13647]
[1725314524931,2.2781,2551.1,2550.6,3.13647]
[1725314525364,5.414,2551.1,2550.6,3.13647]
[1725314527640,5.414,2551.1,2550.5,4.15619379]
[1725314527973,5.414,2551.1,2550.5,10.42936379]
[1725314527974,6.268986,2551.1,2550.5,10.42936379]
[1725314528160,5.414,2551.1,2550.5,10.42936379]
[1725314528364,5.414,2551.1,2550.5,7.29276379]
[1725314528532,5.414,2551.1,2550.5,10.42932379]
[1725314528733,5.414,2551.1,2550.5,11.47225617]
[1725314529487,2.2781,2551.1,2550.6,3.13651]
[1725314530148,5.41369,2551.4,2550.8,3.1362]
[1725314530345,2.2781,2551.9,2551.2,3.13567]
[1725314530554,2.2781,2551.9,2551.4,3.13545]
[1725314530749,2.2781,2551.9,2551.5,3.13537]
[1725314530943,2.2781,2551.9,2551.6,3.13528]
[1725314531138,2.2781,2551.9,2551.6,0.04330616]
[1725314531372,2.2781,2551.9,2551.3,3.13556]
[1725314531571,2.2781,2551.9,2551.7,0.04319936]
[1725314531739,2.2781,2551.9,2551.4,3.13546]
[1725314531949,3.61143403,2552.5,2551.8,0.04291255]
[1725314531950,0.47723403,2552.5,2551.8,0.04291255]
[1725314532245,2.381,2552.3,2551.9,3.13491]
[1725314532446,2.381,2552.3,2551.7,6.27012]
[1725314532678,2.381,2552.3,2552.0,0.04550935]
[1725314532899,2.381,2552.3,2551.8,3.13501]
[1725314533105,2.381,2552.3,2552.1,0.04539496]
[1725314533393,2.381,2552.3,2552.2,0.04528057]
[1725314533579,5.381,2552.3,2551.8,3.13501]
[1725314533785,2.3954,2552.6,2552.2,3.17973057]
[1725314534103,2.3954,2552.6,2552.0,4.15619379]
[1725314534104,2.3954,2552.9,2552.4,3.13421]
[1725314534504,2.3954,2552.9,2552.5,0.04484399]
[1725314534703,3.261642,2552.9,2552.5,3.17899399]
[1725314534860,2.458,2553.2,2552.6,3.13397]
[1725314535059,3.017125,2553.2,2552.6,3.13397]
[1725314535301,3.017125,2553.2,2552.7,0.05182632]
[1725314536101,3.0,2553.1,2552.7,3.18574632]
[1725314536497,3.0,2553.1,2552.7,0.05182632]
[1725314536672,2.458,2553.2,2552.7,3.18566632]
[1725314537619,3.13381,2552.8,2552.7,0.05182632]
[1725314537766,2.347,2552.5,2552.0,7.29091379]
[1725314538488,2.347,2552.5,2552.0,10.42563379]
[1725314538698,2.347,2552.5,2552.2,3.13447]
[1725314538858,2.347,2552.5,2551.6,3.13525]
[1725314538859,2.3361,2552.9,2552.4,3.13423]
[1725314539064,3.0,2553.0,2552.5,3.13415]
[1725314539298,3.0,2553.0,2552.7,3.13393]
[1725314539474,2.3361,2553.2,2552.6,3.13395]
[1725314539665,3.13379,2552.9,2552.2,3.13443]
[1725314540102,3.13379,2552.9,2552.3,3.13435]
[1725314540322,3.13379,2552.9,2552.2,3.13443]
[1725314540630,2.3361,2552.8,2552.2,3.13443]
[1725314540832,3.13422,2552.5,2552.0,4.15619379]
[1725314540984,3.13422,2552.5,2551.9,3.1349]
[1725314541525,3.13422,2552.5,2551.8,3.13498]
[1725314541706,3.13422,2552.5,2551.8,6.26994]
[1725314541905,3.13422,2552.5,2551.8,3.13496]
[1725314542110,3.761035,2552.5,2551.8,3.13496]
[1725314542498,3.761035,2552.5,2551.8,6.26991]
[1725314542698,2.2651,2552.4,2551.8,3.13495]
[1725314543531,3.13443,2552.3,2551.7,4.15619379]
[1725314543737,0.9160565,2552.3,2551.6,3.13519]
[1725314543888,5.3995,2552.4,2551.6,3.13519]
[1725314544080,3.13444,2552.3,2551.6,3.13519]
[1725314545842,3.13456,2552.2,2551.4,7.29166379]
[1725314546053,3.13471,2552.1,2551.4,7.29163379]
[1725314546339,6.808914,2552.3,2551.5,4.17050883]
[1725314548347,3.674394,2552.3,2551.6,3.1352]
[1725314548719,3.674394,2552.3,2551.6,3.19556514]
[1725314548923,6.808914,2552.3,2551.6,3.19556514]
[1725314549446,3.13455,2552.2,2551.6,3.19556514]
[1725314549927,2.2651,2552.4,2551.8,3.13493]
[1725314550147,2.2651,2552.4,2552.0,6.26949]
[1725314550305,3.0,2552.6,2551.9,0.05988455]
[1725314550306,5.4921,2552.6,2551.9,0.05988455]
[1725314550504,3.0,2552.8,2552.2,3.13444]
[1725314550703,3.0,2552.8,2552.2,3.86350338]
[1725314550947,3.0,2552.8,2552.3,0.05924395]
[1725314551240,3.0,2552.8,2552.3,3.13434]
[1725314551418,3.0,2552.8,2552.4,0.05908383]
[1725314552009,3.13349,2553.1,2552.4,3.89906655]
[1725314552353,5.55178,2553.2,2552.6,3.13405]
[1725314552556,5.55178,2553.2,2552.4,3.19328383]
[1725314552557,3.13358,2553.0,2552.4,3.19328383]
[1725314552708,3.13358,2553.0,2552.5,0.05892373]
[1725314552909,3.13358,2553.0,2552.7,0.05860355]
[1725314553157,3.13358,2553.0,2552.6,0.05876363]
[1725314553445,3.13358,2553.0,2552.4,3.1342]
[1725314553446,3.0,2552.9,2552.8,0.05844348]
[1725314553644,3.0,2553.0,2552.7,0.05860355]
[1725314553849,3.0,2553.0,2552.8,0.05844348]
[1725314554206,3.0,2553.0,2552.4,6.26843]
[1725314554518,3.13344,2553.1,2552.5,3.13411]